[Event "44th Chess Olympiad Open 2022"]
[Site "Chennai"]
[Date "2022.08.07"]
[Round "9.40"]
[White "Degenbaev, Aziz"]
[Black "Ibrahim Alwahsh"]
[Result "1-0"]
[WhiteElo "2215"]
[BlackElo "2058"]
[Annotator "RC"]
[PlyCount "97"]
[EventDate "2022.??.??"]
[TimeControl "60"]

1. e4 {[%emt 0:00:05]} e6 {[%emt 0:00:20]} 2. d4 {[%emt 0:00:09]} d5 {[%emt 0:
00:00]} 3. Nc3 {[%emt 0:00:05]} Bb4 {[%emt 0:00:16]} 4. e5 {[%emt 0:00:06]} c5
{[%emt 0:00:12]} 5. a3 {[%emt 0:00:05]} Bxc3+ {[%emt 0:00:09]} 6. bxc3 {
[%emt 0:00:04]} Nc6 {[%emt 0:00:18]} 7. Nf3 {[%emt 0:00:15]} Bd7 {[%emt 0:00:
00]} 8. a4 {[%emt 0:01:32]} Qc7 {[%emt 0:05:13]} 9. Bb5 {[%emt 0:13:27]} Nge7 {
[%emt 0:02:45]} 10. O-O {[%emt 0:02:17]} Na5 {[%emt 0:12:44]} 11. Bd3 {[%emt 0:
00:00]} h6 {[%emt 0:12:31]} 12. Qd2 {[%emt 0:05:35]} O-O {[%emt 0:29:20]} 13.
dxc5 {[%emt 0:03:38]} f6 {[%emt 0:02:18]} 14. Qf4 {[%emt 0:12:36]} fxe5 {
[%emt 0:06:22]} 15. Qxe5 {[%emt 0:02:10]} Qxe5 {[%emt 0:03:03]} 16. Nxe5 {
[%emt 0:00:23]} Be8 {[%emt 0:01:19]} 17. Re1 {[%emt 0:00:47]} Rc8 {[%emt 0:00:
00]} 18. f3 {[%emt 0:06:42]} Rc7 {[%emt 0:10:50]} 19. Ba3 {[%emt 0:02:22]} Rf4
{[%emt 0:00:52]} 20. c6 {[%emt 0:01:26]} Nc8 {[%emt 0:02:19]} 21. Bb4 {[%emt 0:
00:00]} b6 {[%emt 0:03:10]} 22. Rab1 {[%emt 0:02:46]} Nxc6 {[%emt 0:00:58]} 23.
Nxc6 {[%emt 0:00:25]} Bxc6 {[%emt 0:00:04]} 24. Rxe6 {[%emt 0:00:37]} a5 {
[%emt 0:00:28]} 25. Bd6 {[%emt 0:04:39]} Nxd6 {[%emt 0:00:08]} 26. Rxd6 {
[%emt 0:00:05]} Bxa4 {[%emt 0:00:34]} 27. Rbxb6 {[%emt 0:00:07]} Rf8 {[%emt 0:
00:00]} 28. Rxd5 {[%emt 0:02:38]} Rxc3 {[%emt 0:00:17]} 29. Rb2 {[%emt 0:00:07]
} Rfc8 {[%emt 0:00:40]} 30. Bf5 {[%emt 0:01:08]} R8c7 {[%emt 0:01:10]} 31. Bg6
{[%emt 0:01:21]} Kf8 {[%emt 0:00:19]} 32. Re5 {[%emt 0:00:51]} R3c5 {[%emt 0:
00:00]} 33. Rb8+ {[%emt 0:00:57]} Rc8 {[%emt 0:00:05]} 34. Rxc5 {[%emt 0:00:13]
} Rxb8 {[%emt 0:00:14]} 35. Rxa5 {[%emt 0:00:04]} Be8 {[%emt 0:01:28]} 36. Be4
{[%emt 0:00:19]} Rc8 {[%emt 0:00:40]} 37. Ra8 {[%emt 0:00:31]} Rxa8 {[%emt 0:
00:00]} 38. Bxa8 {[%emt 0:00:02]} Ke7 {[%emt 0:00:20]} 39. Kf2 {[%emt 0:00:06]}
Kd6 {[%emt 0:00:12]} 40. Ke3 {[%emt 0:00:06]} Kc5 {[%emt 0:00:12]} 41. Be4 {
[%emt 0:30:07]} Kc4 {[%emt 0:30:50]} 42. h4 {[%emt 0:00:28]} Kc3 {[%emt 0:00:
00]} 43. g4 {[%emt 0:01:04]} Ba4 {[%emt 0:00:00]} 44. g5 {[%emt 0:00:00]} hxg5
{[%emt 0:00:00]} 45. hxg5 {[%emt 0:00:00]} Kc4 {[%emt 0:00:00]} 46. Kf4 {
[%emt 0:00:00]} Kd4 {[%emt 0:00:00]} 47. Kf5 {[%emt 0:00:00]} Be8 {[%emt 0:00:
00]} 48. Ke6 {[%emt 0:00:00]} Ke3 {[%emt 0:00:00]} 49. g6 {[%emt 0:00:00]} 1-0

[Event "44th Chess Olympiad Open 2022"]
[Site "Chennai"]
[Date "2022.08.07"]
[Round "9.40"]
[White "Aboudi, Marwan"]
[Black "Abdyjapar, Asyl"]
[Result "0-1"]
[WhiteElo "2144"]
[BlackElo "2306"]
[Annotator "ChessBase"]
[PlyCount "118"]
[EventDate "2022.??.??"]
[TimeControl "60"]

1. d4 {[%emt 0:00:05]} Nf6 {[%emt 0:00:05]} 2. Nf3 {[%emt 0:00:06]} g6 {
[%emt 0:00:07]} 3. g3 {[%emt 0:00:09]} Bg7 {[%emt 0:00:04]} 4. Bg2 {[%emt 0:00:
00]} O-O {[%emt 0:00:04]} 5. O-O {[%emt 0:00:07]} d6 {[%emt 0:00:03]} 6. c4 {
[%emt 0:00:08]} Nc6 {[%emt 0:00:06]} 7. d5 {[%emt 0:00:06]} Na5 {[%emt 0:00:10]
} 8. Na3 {[%emt 0:00:06]} c5 {[%emt 0:00:05]} 9. Re1 {[%emt 0:00:04]} a6 {
[%emt 0:00:16]} 10. e4 {[%emt 0:00:25]} Bg4 {[%emt 0:00:25]} 11. h3 {[%emt 0:
00:00]} Bxf3 {[%emt 0:00:05]} 12. Bxf3 {[%emt 0:00:47]} b5 {[%emt 0:00:35]} 13.
cxb5 {[%emt 0:02:44]} axb5 {[%emt 0:05:12]} 14. Nxb5 {[%emt 0:13:13]} Nd7 {
[%emt 0:00:15]} 15. Rb1 {[%emt 0:07:12]} c4 {[%emt 0:02:56]} 16. b4 {[%emt 0:
00:00]} cxb3 {[%emt 0:05:54]} 17. axb3 {[%emt 0:00:38]} Qb6 {[%emt 0:01:04]}
18. Be2 {[%emt 0:02:29]} Rfc8 {[%emt 0:00:05]} 19. Be3 {[%emt 0:16:03]} Qb7 {
[%emt 0:00:10]} 20. Nd4 {[%emt 0:00:50]} Qb4 {[%emt 0:00:33]} 21. Bg4 {[%emt 0:
00:00]} Rc7 {[%emt 0:01:12]} 22. Bxd7 {[%emt 0:00:09]} Rxd7 {[%emt 0:00:14]}
23. Ra1 {[%emt 0:04:57]} Qb7 {[%emt 0:06:19]} 24. b4 {[%emt 0:06:10]} Nc4 {
[%emt 0:02:50]} 25. Rxa8+ {[%emt 0:00:28]} Qxa8 {[%emt 0:00:03]} 26. Nc6 {
[%emt 0:00:54]} Nxe3 {[%emt 0:00:19]} 27. Rxe3 {[%emt 0:00:22]} Rb7 {[%emt 0:
00:00]} 28. Qc1 {[%emt 0:04:41]} Bf6 {[%emt 0:03:03]} 29. Ra3 {[%emt 0:00:25]}
Qe8 {[%emt 0:00:07]} 30. Qe3 {[%emt 0:04:16]} Kg7 {[%emt 0:02:37]} 31. Ra7 {
[%emt 0:02:34]} Rxa7 {[%emt 0:00:05]} 32. Qxa7 {[%emt 0:00:14]} e6 {[%emt 0:00:
00]} 33. Qe3 {[%emt 0:04:52]} exd5 {[%emt 0:00:33]} 34. exd5 {[%emt 0:00:19]}
Qa8 {[%emt 0:00:06]} 35. b5 {[%emt 0:00:28]} Qa1+ {[%emt 0:00:06]} 36. Kh2 {
[%emt 0:03:25]} Qb2 {[%emt 0:00:43]} 37. b6 {[%emt 0:01:17]} h5 {[%emt 0:00:16]
} 38. h4 {[%emt 0:03:39]} Qb5 {[%emt 0:05:47]} 39. Na5 {[%emt 0:03:47]} Qxa5 {
[%emt 0:00:41]} 40. b7 {[%emt 0:00:08]} Qb4 {[%emt 0:00:07]} 41. Qa7 {[%emt 0:
00:00]} Bd4 {[%emt 0:30:12]} 42. b8=Q {[%emt 0:00:41]} Qd2 {[%emt 0:00:06]} 43.
Qxd4+ {[%emt 0:06:40]} Qxd4 {[%emt 0:00:03]} 44. Qxd6 {[%emt 0:00:13]} Qxf2+ {
[%emt 0:00:04]} 45. Kh3 {[%emt 0:00:24]} Kh7 {[%emt 0:04:13]} 46. Qe5 {[%emt 0:
00:00]} Qg1 {[%emt 0:00:37]} 47. Qe4 {[%emt 0:00:00]} Kg8 {[%emt 0:00:00]} 48.
Qe8+ {[%emt 0:00:00]} Kg7 {[%emt 0:00:00]} 49. Qe5+ {[%emt 0:00:00]} Kf8 {
[%emt 0:00:00]} 50. Qd6+ {[%emt 0:00:00]} Kg8 {[%emt 0:00:00]} 51. Qb8+ {
[%emt 0:00:00]} Kh7 {[%emt 0:00:00]} 52. Qb2 {[%emt 0:00:00]} Qh1+ {[%emt 0:00:
00]} 53. Qh2 {[%emt 0:00:00]} Qxh2+ {[%emt 0:00:00]} 54. Kxh2 {[%emt 0:00:00]}
Kg7 {[%emt 0:00:00]} 55. g4 {[%emt 0:00:00]} hxg4 {[%emt 0:00:00]} 56. Kg3 {
[%emt 0:00:00]} f5 {[%emt 0:00:00]} 57. Kf4 {[%emt 0:00:00]} Kf6 {[%emt 0:00:
00]} 58. d6 {[%emt 0:00:00]} Ke6 {[%emt 0:00:00]} 59. Kg5 {[%emt 0:00:00]} g3 {
[%emt 0:00:00]} 0-1

[Event "44th Chess Olympiad Open 2022"]
[Site "Chennai"]
[Date "2022.08.07"]
[Round "9.41"]
[White "Rohl Montes, Juan Armando"]
[Black "Chekh Adm Khedr, Aram"]
[Result "1/2-1/2"]
[WhiteElo "2382"]
[BlackElo "2147"]
[Annotator "RC"]
[PlyCount "156"]
[EventDate "2022.??.??"]
[TimeControl "60"]

1. e4 {[%emt 0:00:28]} c5 {[%emt 0:00:03]} 2. c3 {[%emt 0:01:52]} d5 {[%emt 0:
00:00]} 3. exd5 {[%emt 0:00:19]} Qxd5 {[%emt 0:00:01]} 4. d4 {[%emt 0:00:25]}
e6 {[%emt 0:00:33]} 5. Nf3 {[%emt 0:01:16]} Nf6 {[%emt 0:00:13]} 6. Bd3 {
[%emt 0:03:41]} Nc6 {[%emt 0:01:44]} 7. O-O {[%emt 0:02:07]} Be7 {[%emt 0:00:
00]} 8. Na3 {[%emt 0:14:31]} cxd4 {[%emt 0:07:11]} 9. Nb5 {[%emt 0:00:53]} Qd8
{[%emt 0:00:04]} 10. Nbxd4 {[%emt 0:00:25]} Nxd4 {[%emt 0:00:58]} 11. Nxd4 {
[%emt 0:00:13]} O-O {[%emt 0:00:05]} 12. Re1 {[%emt 0:02:59]} Re8 {[%emt 0:00:
00]} 13. Qf3 {[%emt 0:06:31]} Qd5 {[%emt 0:01:31]} 14. Qxd5 {[%emt 0:10:39]}
Nxd5 {[%emt 0:01:19]} 15. Be4 {[%emt 0:00:06]} Bd7 {[%emt 0:02:15]} 16. Nf3 {
[%emt 0:17:13]} Bf6 {[%emt 0:08:00]} 17. Bg5 {[%emt 0:01:05]} Bxg5 {[%emt 0:00:
00]} 18. Nxg5 {[%emt 0:00:04]} Nf6 {[%emt 0:00:17]} 19. Bf3 {[%emt 0:00:37]}
Rac8 {[%emt 0:09:05]} 20. Rad1 {[%emt 0:01:51]} Bc6 {[%emt 0:00:17]} 21. Bxc6 {
[%emt 0:01:16]} Rxc6 {[%emt 0:00:02]} 22. Ne4 {[%emt 0:00:01]} Nxe4 {[%emt 0:
00:00]} 23. Rxe4 {[%emt 0:00:23]} Rec8 {[%emt 0:00:16]} 24. f4 {[%emt 0:03:36]}
h5 {[%emt 0:09:53]} 25. Kf2 {[%emt 0:01:31]} Kf8 {[%emt 0:00:13]} 26. Ke3 {
[%emt 0:02:34]} Ke7 {[%emt 0:00:41]} 27. Red4 {[%emt 0:10:14]} R8c7 {[%emt 0:
00:00]} 28. R1d2 {[%emt 0:01:34]} g6 {[%emt 0:09:44]} 29. g3 {[%emt 0:00:35]}
Rc5 {[%emt 0:00:27]} 30. Rd8 {[%emt 0:02:31]} Rb5 {[%emt 0:00:41]} 31. R8d4 {
[%emt 0:03:06]} Rbc5 {[%emt 0:00:38]} 32. Ra4 {[%emt 0:02:05]} a6 {[%emt 0:00:
00]} 33. Rad4 {[%emt 0:00:05]} Rc4 {[%emt 0:14:17]} 34. Rd8 {[%emt 0:02:05]}
R4c5 {[%emt 0:01:12]} 35. Rb8 {[%emt 0:00:18]} e5 {[%emt 0:01:31]} 36. fxe5 {
[%emt 0:01:21]} Rxe5+ {[%emt 0:00:05]} 37. Kd3 {[%emt 0:00:16]} Rd5+ {[%emt 0:
00:00]} 38. Kc2 {[%emt 0:00:04]} Rxd2+ {[%emt 0:00:04]} 39. Kxd2 {[%emt 0:00:
00]} Kf6 {[%emt 0:01:12]} 40. Rd8 {[%emt 0:02:14]} Kf5 {[%emt 0:00:21]} 41. Rd4
{[%emt 0:30:32]} f6 {[%emt 0:12:50]} 42. Ke3 {[%emt 0:00:00]} g5 {[%emt 0:00:
00]} 43. h3 {[%emt 0:00:00]} Ke5 {[%emt 0:12:27]} 44. Re4+ {[%emt 0:00:00]} Kd5
{[%emt 0:00:04]} 45. Rd4+ {[%emt 0:00:00]} Ke5 {[%emt 0:00:05]} 46. Re4+ {
[%emt 0:00:00]} Kd5 {[%emt 0:00:05]} 47. Re8 {[%emt 0:00:00]} Rh7 {[%emt 0:00:
00]} 48. Kf3 {[%emt 0:00:00]} h4 {[%emt 0:01:00]} 49. g4 {[%emt 0:00:00]} Rd7 {
[%emt 0:00:17]} 50. Ke3 {[%emt 0:00:58]} a5 {[%emt 0:03:25]} 51. Re4 {[%emt 0:
00:00]} Rf7 {[%emt 0:02:47]} 52. Rd4+ {[%emt 0:00:30]} Ke5 {[%emt 0:00:05]} 53.
c4 {[%emt 0:05:22]} Rc7 {[%emt 0:00:49]} 54. Rd5+ {[%emt 0:00:15]} Ke6 {
[%emt 0:00:06]} 55. Kd4 {[%emt 0:00:31]} b6 {[%emt 0:00:04]} 56. b3 {[%emt 0:
00:00]} Rf7 {[%emt 0:04:55]} 57. Rb5 {[%emt 0:00:48]} Rd7+ {[%emt 0:00:01]} 58.
Ke4 {[%emt 0:00:42]} Rd6 {[%emt 0:00:08]} 59. a3 {[%emt 0:00:26]} Rc6 {[%emt 0:
00:00]} 60. Kd4 {[%emt 0:00:39]} Rd6+ {[%emt 0:01:29]} 61. Rd5 {[%emt 0:00:05]}
Rc6 {[%emt 0:02:16]} 62. b4 {[%emt 0:00:12]} axb4 {[%emt 0:00:05]} 63. axb4 {
[%emt 0:00:01]} Rc7 {[%emt 0:00:32]} 64. Rb5 {[%emt 0:00:14]} Rd7+ {[%emt 0:00:
00]} 65. Ke4 {[%emt 0:00:11]} Rd6 {[%emt 0:00:18]} 66. c5 {[%emt 0:00:13]} bxc5
{[%emt 0:00:07]} 67. bxc5 {[%emt 0:00:04]} Rd1 {[%emt 0:00:15]} 68. Rb6+ {
[%emt 0:00:09]} Ke7 {[%emt 0:00:41]} 69. Rb3 {[%emt 0:02:49]} Rg1 {[%emt 0:00:
00]} 70. Kf5 {[%emt 0:01:39]} Rf1+ {[%emt 0:00:48]} 71. Kg6 {[%emt 0:00:04]}
Kd7 {[%emt 0:00:51]} 72. Rb6 {[%emt 0:01:01]} Rc1 {[%emt 0:00:32]} 73. Rd6+ {
[%emt 0:00:32]} Ke7 {[%emt 0:00:23]} 74. Rd5 {[%emt 0:01:38]} Rc3 {[%emt 0:00:
00]} 75. Rd6 {[%emt 0:00:58]} Rxh3 {[%emt 0:00:18]} 76. Rxf6 {[%emt 0:00:11]}
Rg3 {[%emt 0:00:05]} 77. Kxg5 {[%emt 0:01:12]} Rxg4+ {[%emt 0:00:09]} 78. Kxg4
{[%emt 0:00:03]} Kxf6 {[%emt 0:03:46]} 1/2-1/2

[Event "44th Chess Olympiad Open 2022"]
[Site "Chennai"]
[Date "2022.08.07"]
[Round "9.41"]
[White "Eiti, Bashir"]
[Black "Escalona Landi, Samid Eduardo"]
[Result "1-0"]
[WhiteElo "2337"]
[BlackElo "2191"]
[Annotator "RC"]
[PlyCount "45"]
[EventDate "2022.??.??"]
[TimeControl "60"]

1. Nf3 {[%emt 0:00:05]} Nf6 {[%emt 0:00:04]} 2. g3 {[%emt 0:00:05]} g6 {
[%emt 0:00:05]} 3. b4 {[%emt 0:01:35]} e6 {[%emt 0:00:56]} 4. a3 {[%emt 0:00:
00]} Bg7 {[%emt 0:00:36]} 5. Bb2 {[%emt 0:00:10]} b6 {[%emt 0:00:14]} 6. Bg2 {
[%emt 0:00:14]} Bb7 {[%emt 0:00:05]} 7. O-O {[%emt 0:01:05]} O-O {[%emt 0:00:
00]} 8. d3 {[%emt 0:01:02]} d6 {[%emt 0:00:19]} 9. c4 {[%emt 0:01:32]} c5 {
[%emt 0:00:28]} 10. Nc3 {[%emt 0:03:24]} Nc6 {[%emt 0:00:16]} 11. Qa4 {[%emt 0:
00:00]} Ne7 {[%emt 0:05:51]} 12. Rfb1 {[%emt 0:06:42]} h6 {[%emt 0:10:07]} 13.
Qd1 {[%emt 0:08:28]} Qd7 {[%emt 0:07:53]} 14. Ra2 {[%emt 0:15:52]} Rac8 {
[%emt 0:01:05]} 15. bxc5 {[%emt 0:01:38]} Rxc5 {[%emt 0:06:53]} 16. a4 {
[%emt 0:04:53]} Rh5 {[%emt 0:00:46]} 17. a5 {[%emt 0:05:04]} bxa5 {[%emt 0:00:
00]} 18. Ba3 {[%emt 0:11:11]} Ng4 {[%emt 0:16:15]} 19. Ne4 {[%emt 0:08:01]} a4
{[%emt 0:24:48]} 20. h3 {[%emt 0:02:39]} Nf6 {[%emt 0:01:23]} 21. Ne5 {[%emt 0:
00:00]} Rxe5 {[%emt 0:00:15]} 22. Rxb7 {[%emt 0:00:15]} Qd8 {[%emt 0:00:27]}
23. Bxd6 {[%emt 0:03:55]} 1-0

[Event "44th Chess Olympiad Open 2022"]
[Site "Chennai"]
[Date "2022.08.07"]
[Round "9.41"]
[White "Castro Torres, Jose Luis"]
[Black "Koniahli, Malek."]
[Result "1/2-1/2"]
[WhiteElo "2326"]
[BlackElo "2238"]
[Annotator "RC"]
[PlyCount "174"]
[EventDate "2022.??.??"]
[TimeControl "60"]

1. e4 {[%emt 0:00:12]} c5 {[%emt 0:00:05]} 2. Nf3 {[%emt 0:00:04]} Nc6 {
[%emt 0:00:04]} 3. d4 {[%emt 0:00:06]} cxd4 {[%emt 0:00:05]} 4. Nxd4 {[%emt 0:
00:00]} Nf6 {[%emt 0:00:04]} 5. Nc3 {[%emt 0:00:06]} d6 {[%emt 0:00:04]} 6. Bg5
{[%emt 0:00:17]} e6 {[%emt 0:00:05]} 7. Qd2 {[%emt 0:00:33]} a6 {[%emt 0:00:05]
} 8. f4 {[%emt 0:03:02]} h6 {[%emt 0:03:28]} 9. Bxf6 {[%emt 0:05:41]} Qxf6 {
[%emt 0:00:52]} 10. Nf3 {[%emt 0:03:08]} Qd8 {[%emt 0:00:25]} 11. O-O-O {
[%emt 0:00:30]} Be7 {[%emt 0:08:21]} 12. Kb1 {[%emt 0:15:24]} b5 {[%emt 0:00:
00]} 13. Qe3 {[%emt 0:17:11]} Qc7 {[%emt 0:08:45]} 14. h4 {[%emt 0:20:44]} Bb7
{[%emt 0:07:25]} 15. g4 {[%emt 0:06:38]} O-O-O {[%emt 0:02:45]} 16. Bh3 {
[%emt 0:01:35]} g5 {[%emt 0:12:57]} 17. fxg5 {[%emt 0:04:27]} hxg5 {[%emt 0:00:
00]} 18. hxg5 {[%emt 0:11:46]} Rdg8 {[%emt 0:04:54]} 19. Bg2 {[%emt 0:01:58]}
Ne5 {[%emt 0:08:05]} 20. Rxh8 {[%emt 0:00:51]} Rxh8 {[%emt 0:00:02]} 21. Qf4 {
[%emt 0:00:43]} Rf8 {[%emt 0:01:03]} 22. a3 {[%emt 0:01:23]} Kb8 {[%emt 0:00:
00]} 23. Rh1 {[%emt 0:03:35]} Nxf3 {[%emt 0:00:46]} 24. Bxf3 {[%emt 0:00:21]}
Qd8 {[%emt 0:00:08]} 25. Rh5 {[%emt 0:00:32]} Ka8 {[%emt 0:01:51]} 26. e5 {
[%emt 0:01:21]} d5 {[%emt 0:00:28]} 27. Ne2 {[%emt 0:00:27]} Qb6 {[%emt 0:00:
00]} 28. Rh7 {[%emt 0:00:23]} Ka7 {[%emt 0:00:04]} 29. Bg2 {[%emt 0:01:10]} b4
{[%emt 0:00:54]} 30. axb4 {[%emt 0:00:38]} Bxb4 {[%emt 0:00:02]} 31. Rxf7 {
[%emt 0:00:33]} Rxf7 {[%emt 0:01:27]} 32. Qxf7 {[%emt 0:00:06]} Ba3 {[%emt 0:
00:00]} 33. b3 {[%emt 0:00:11]} Qe3 {[%emt 0:00:02]} 34. Qf3 {[%emt 0:01:14]}
Qxe5 {[%emt 0:00:06]} 35. Qf2+ {[%emt 0:00:33]} Ka8 {[%emt 0:00:32]} 36. Nd4 {
[%emt 0:00:29]} Qxg5 {[%emt 0:00:35]} 37. Ka2 {[%emt 0:00:18]} Qc1 {[%emt 0:00:
00]} 38. c3 {[%emt 0:00:01]} Bc5 {[%emt 0:00:28]} 39. b4 {[%emt 0:01:04]} Bb6 {
[%emt 0:00:03]} 40. Qc2 {[%emt 0:00:33]} Qe3 {[%emt 0:01:02]} 41. Nb3 {[%emt 0:
00:00]} Qg3 {[%emt 0:15:15]} 42. c4 {[%emt 0:04:32]} Qxg4 {[%emt 0:01:30]} 43.
cxd5 {[%emt 0:00:57]} exd5 {[%emt 0:06:16]} 44. Ka3 {[%emt 0:01:01]} Qg3 {
[%emt 0:01:47]} 45. Qd2 {[%emt 0:06:59]} Qe5 {[%emt 0:02:57]} 46. Qd3 {[%emt 0:
00:00]} Ka7 {[%emt 0:01:16]} 47. Ka2 {[%emt 0:01:56]} Kb8 {[%emt 0:09:56]} 48.
Bf3 {[%emt 0:01:11]} Qd6 {[%emt 0:02:29]} 49. Qd2 {[%emt 0:03:22]} Qe5 {
[%emt 0:02:49]} 50. Bg2 {[%emt 0:00:13]} Kc7 {[%emt 0:11:29]} 51. Qc2+ {
[%emt 0:00:26]} Kb8 {[%emt 0:00:22]} 52. Qd2 {[%emt 0:00:01]} Ka7 {[%emt 0:00:
00]} 53. Ka3 {[%emt 0:00:05]} Qh2 {[%emt 0:01:05]} 54. Ka2 {[%emt 0:01:52]} Qd6
{[%emt 0:00:37]} 55. Bf3 {[%emt 0:00:09]} Qc6 {[%emt 0:00:34]} 56. Ka3 {
[%emt 0:00:31]} Qc4 {[%emt 0:00:17]} 57. Qc1 {[%emt 0:02:46]} Qd3 {[%emt 0:00:
00]} 58. Qd1 {[%emt 0:00:19]} Qb5 {[%emt 0:01:06]} 59. Qe2 {[%emt 0:00:38]}
Qxe2 {[%emt 0:01:31]} 60. Bxe2 {[%emt 0:00:01]} Be3 {[%emt 0:00:21]} 61. b5 {
[%emt 0:00:42]} axb5 {[%emt 0:00:27]} 62. Bxb5 {[%emt 0:00:09]} Kb6 {[%emt 0:
00:00]} 63. Bd3 {[%emt 0:00:29]} Bc8 {[%emt 0:00:30]} 64. Kb4 {[%emt 0:00:26]}
Kc6 {[%emt 0:00:11]} 65. Bb5+ {[%emt 0:00:39]} Kd6 {[%emt 0:00:05]} 66. Bd3 {
[%emt 0:00:03]} Ke5 {[%emt 0:00:10]} 67. Kc3 {[%emt 0:00:20]} Bb6 {[%emt 0:00:
00]} 68. Kd2 {[%emt 0:00:26]} Bd7 {[%emt 0:00:11]} 69. Kc3 {[%emt 0:00:34]} Kf4
{[%emt 0:00:28]} 70. Kd2 {[%emt 0:01:01]} Ba4 {[%emt 0:00:20]} 71. Bc2 {
[%emt 0:00:50]} Be3+ {[%emt 0:00:16]} 72. Kc3 {[%emt 0:00:24]} Ke5 {[%emt 0:00:
00]} 73. Bd3 {[%emt 0:00:58]} Bb6 {[%emt 0:00:48]} 74. Kb4 {[%emt 0:00:26]} Be8
{[%emt 0:00:19]} 75. Kc3 {[%emt 0:00:34]} Bd8 {[%emt 0:00:13]} 76. Kd2 {
[%emt 0:00:27]} Bf6 {[%emt 0:00:20]} 77. Bc2 {[%emt 0:00:40]} Be7 {[%emt 0:00:
00]} 78. Kc3 {[%emt 0:00:17]} Ba4 {[%emt 0:01:19]} 79. Nd4 {[%emt 0:00:51]} Bd7
{[%emt 0:00:15]} 80. Nb3 {[%emt 0:00:30]} Bf6 {[%emt 0:00:13]} 81. Kd2 {
[%emt 0:00:29]} Kf4 {[%emt 0:00:07]} 82. Nc5 {[%emt 0:00:12]} Bc8 {[%emt 0:00:
00]} 83. Nd3+ {[%emt 0:00:14]} Kg3 {[%emt 0:00:27]} 84. Nb4 {[%emt 0:00:28]} d4
{[%emt 0:00:12]} 85. Nc6 {[%emt 0:00:51]} Bg5+ {[%emt 0:02:23]} 86. Ke1 {
[%emt 0:00:01]} Bf6 {[%emt 0:01:15]} 87. Nxd4 {[%emt 0:00:08]} Bxd4 {[%emt 0:
00:00]} 1/2-1/2

[Event "44th Chess Olympiad Open 2022"]
[Site "Chennai"]
[Date "2022.08.07"]
[Round "9.41"]
[White "Altorky, Amer"]
[Black "Palomo, Franklin Annervys"]
[Result "0-1"]
[WhiteElo "2040"]
[BlackElo "2324"]
[Annotator "RC"]
[PlyCount "76"]
[EventDate "2022.??.??"]
[TimeControl "60"]

1. e4 {[%emt 0:00:12]} c5 {[%emt 0:00:11]} 2. Nc3 {[%emt 0:00:19]} Nc6 {
[%emt 0:00:11]} 3. g3 {[%emt 0:00:36]} g6 {[%emt 0:00:22]} 4. Bg2 {[%emt 0:00:
00]} Bg7 {[%emt 0:00:06]} 5. d3 {[%emt 0:00:09]} d6 {[%emt 0:00:26]} 6. f4 {
[%emt 0:00:44]} e6 {[%emt 0:00:17]} 7. Nf3 {[%emt 0:00:06]} Nge7 {[%emt 0:00:
00]} 8. O-O {[%emt 0:00:22]} O-O {[%emt 0:01:24]} 9. Be3 {[%emt 0:00:12]} Nd4 {
[%emt 0:00:44]} 10. Bf2 {[%emt 0:02:20]} Rb8 {[%emt 0:05:13]} 11. Nxd4 {
[%emt 0:08:54]} cxd4 {[%emt 0:05:42]} 12. Ne2 {[%emt 0:00:05]} e5 {[%emt 0:00:
00]} 13. c3 {[%emt 0:03:07]} Nc6 {[%emt 0:03:48]} 14. cxd4 {[%emt 0:08:50]}
exd4 {[%emt 0:00:10]} 15. Rc1 {[%emt 0:04:27]} Qb6 {[%emt 0:02:57]} 16. Qd2 {
[%emt 0:05:55]} Be6 {[%emt 0:02:08]} 17. b3 {[%emt 0:06:11]} a5 {[%emt 0:06:54]
} 18. h3 {[%emt 0:06:47]} f5 {[%emt 0:09:13]} 19. exf5 {[%emt 0:03:08]} gxf5 {
[%emt 0:00:09]} 20. Bf3 {[%emt 0:02:26]} Rbe8 {[%emt 0:05:48]} 21. Qb2 {
[%emt 0:16:11]} Bf7 {[%emt 0:03:14]} 22. Rfd1 {[%emt 0:05:17]} Re7 {[%emt 0:00:
00]} 23. Rc2 {[%emt 0:05:28]} Rfe8 {[%emt 0:02:09]} 24. g4 {[%emt 0:01:21]} Nb4
{[%emt 0:03:34]} 25. Rcd2 {[%emt 0:08:17]} Re3 {[%emt 0:01:12]} 26. Bg2 {
[%emt 0:00:31]} Bd5 {[%emt 0:04:19]} 27. Ng3 {[%emt 0:01:25]} Bxg2 {[%emt 0:00:
00]} 28. Kxg2 {[%emt 0:00:03]} Qc6+ {[%emt 0:00:56]} 29. Kh2 {[%emt 0:01:19]}
fxg4 {[%emt 0:00:28]} 30. hxg4 {[%emt 0:06:14]} Qf3 {[%emt 0:00:31]} 31. Rg1 {
[%emt 0:02:14]} Qxf4 {[%emt 0:08:27]} 32. Qc1 {[%emt 0:01:53]} Rf3 {[%emt 0:00:
00]} 33. Rg2 {[%emt 0:00:59]} Be5 {[%emt 0:06:01]} 34. Qc4+ {[%emt 0:00:46]}
Kh8 {[%emt 0:02:25]} 35. Re2 {[%emt 0:00:32]} Nxd3 {[%emt 0:03:29]} 36. Bxd4 {
[%emt 0:00:28]} Rxg3 {[%emt 0:02:27]} 37. Bxe5+ {[%emt 0:00:30]} Rxe5 {[%emt 0:
00:00]} 38. Qxf4 {[%emt 0:00:32]} Rxg2+ {[%emt 0:00:11]} 0-1